fUST/lending_fUST_20240121
["ID","MTS","AMOUNT","RATE_DAILY","PERIOD"]
[312356680,1705822240833,-500.0,0.00030136,2]
[312356681,1705822240842,-500.0,0.00030136,2]
[312356682,1705822240852,-575.98690108,0.00030136,2]
[312356683,1705822240861,-500.32661163,0.00030136,2]
[312356684,1705822240870,-500.0,0.00030136,2]
[312356685,1705822240880,-500.0,0.00030136,2]
[312356686,1705822240889,-500.0,0.00030136,2]
[312356687,1705822240898,-708.63,0.00030136,2]
[312356688,1705822240907,-500.72302564,0.00030136,2]
[312356689,1705822240916,-500.0,0.00030136,2]
[312356690,1705822240925,-1050.99,0.00030136,2]
[312356691,1705822240935,-500.0,0.00030136,2]
[312356692,1705822240944,-539.51631293,0.00030136,2]
[312356693,1705822240953,-500.0,0.00030136,2]
[312356694,1705822240962,-500.0,0.00030136,2]
[312356695,1705822240971,-500.0,0.00030136,2]
[312356696,1705822240980,-500.0,0.00030136,2]
[312356697,1705822240989,-621.96,0.00030136,2]
[312356698,1705822240998,-621.96,0.00030136,2]
[312356699,1705822241007,-621.96,0.00030136,2]
[312356700,1705822241016,-621.96,0.00030136,2]
[312356701,1705822241025,-621.96,0.00030136,2]
[312356702,1705822241034,-621.96,0.00030136,2]
[312356703,1705822241044,-621.96,0.00030136,2]
[312356704,1705822241053,-621.96,0.00030136,2]
[312356705,1705822241061,-621.96,0.00030136,2]
[312356706,1705822241070,-621.96,0.00030136,2]
[312356707,1705822241079,-621.96,0.00030136,2]
[312356708,1705822241088,-621.96,0.00030136,2]
[312356709,1705822241097,-621.96,0.00030136,2]
[312356710,1705822241106,-621.96,0.00030136,2]
[312356711,1705822241115,-621.96,0.00030136,2]
[312356712,1705822241124,-621.96,0.00030136,2]
[312356713,1705822241133,-621.96,0.00030136,2]
[312356714,1705822241142,-621.96,0.00030136,2]
[312356715,1705822241151,-500.0,0.00030136,2]
[312356716,1705822241160,-500.13735604,0.00030136,2]
[312356717,1705822241169,-500.0,0.00030136,2]
[312356718,1705822241178,-500.44787412,0.00030136,2]
[312356719,1705822241187,-500.0,0.00030136,2]
[312356720,1705822241197,-506.57330405,0.00030136,2]
[312356721,1705822241206,-639.75,0.00030136,2]
[312356722,1705822241215,-500.0,0.00030136,2]
[312356723,1705822241224,-500.0,0.00030136,7]
[312356724,1705822241233,-298.05207015,0.00030136,2]
[312356725,1705822241242,-500.0,0.00030136,2]
[312356726,1705822241251,-2090.36,0.00030136,2]
[312356727,1705822241260,-500.0,0.00030136,2]
[312356728,1705822241269,-724.54,0.00030136,2]
[312356729,1705822241278,-500.0,0.00030136,2]
[312356730,1705822241287,-379.75033587,0.00030136,2]
[312356731,1705822241296,-500.0,0.00030136,2]
[312356732,1705822241305,-533.55959299,0.00030136,2]
[312356733,1705822241314,-514.87567148,0.00030136,2]
[312356734,1705822241323,-500.42835523,0.00030136,2]
[312356736,1705822241332,-500.0,0.00030136,2]
[312356737,1705822241341,-500.0,0.00030136,2]
[312356738,1705822241350,-500.0,0.00030136,2]
[312356739,1705822241360,-500.0,0.00030136,2]
[312356740,1705822241369,-500.0,0.00030136,2]
[312356741,1705822241377,-500.0,0.00030136,2]
[312356742,1705822241386,-2966.89,0.00030136,2]
[312356744,1705822241395,-500.0,0.00030136,2]
[312356746,1705822241404,-500.0,0.00030136,2]
[312356747,1705822241414,-1000.0,0.00030136,2]
[312356749,1705822241423,-500.0,0.00030136,2]
[312356750,1705822241432,-500.0,0.00030136,2]
[312356751,1705822241441,-501.52704151,0.00030136,2]
[312356753,1705822241450,-500.0,0.00030136,2]
[312356755,1705822241459,-500.0,0.00030136,2]
[312356757,1705822241468,-300.67494007,0.00030136,2]
[312356759,1705822241477,-607.28,0.00030136,2]
[312356761,1705822241486,-500.0,0.00030136,2]
[312356763,1705822241495,-500.0,0.00030136,2]
[312356765,1705822241504,-500.0,0.00030136,2]
[312356766,1705822241513,-500.0,0.00030136,2]
[312356768,1705822241523,-500.0,0.00030136,2]
[312356769,1705822241532,-500.0,0.00030136,2]
[312356770,1705822241541,-500.0,0.00030136,2]
[312356771,1705822241549,-500.67327794,0.00030136,2]
[312356773,1705822241558,-500.0,0.00030136,2]
[312356774,1705822241567,-473.69115438,0.00030136,2]
[312356775,1705822241576,-307.26826808,0.00030136,2]
[312356776,1705822241586,-502.66377343,0.00030136,2]
[312356777,1705822241595,-500.0,0.00030136,2]
[312356778,1705822241604,-859.12,0.00030136,2]
[312356779,1705822241613,-500.0,0.00030136,2]
[312356780,1705822241622,-500.0,0.00030136,2]
[312356781,1705822241631,-500.0,0.00030136,2]
[312356782,1705822241640,-500.0,0.00030136,2]
[312356783,1705822241650,-501.77316946,0.00030136,2]
[312356784,1705822241659,-1522.55,0.00030136,2]
[312356785,1705822241667,-356.08272014,0.00030136,2]
[312356786,1705822241685,-145.6719065,0.00030136,2]
[312356787,1705822241694,-500.0,0.00030136,2]
[312356788,1705822241703,-1069.26,0.00030136,2]
[312356789,1705822241712,-500.0,0.00030136,2]
[312356790,1705822241721,-500.0,0.00030136,2]
[312356791,1705822241730,-550.59287802,0.00030136,2]
[312356792,1705822241740,-500.0,0.00030136,2]
[312356793,1705822241751,-500.0,0.00030136,2]
[312356794,1705822241760,-430.23740903,0.00030136,2]
[312356795,1705822241769,-220.0,0.00030136,2]
[312356796,1705822241778,-500.0,0.00030136,2]
[312356798,1705822241788,-501.90194518,0.00030136,2]
[312356799,1705822241797,-505.60608591,0.00030136,2]
[312356800,1705822241806,-500.0,0.00030136,2]
[312356801,1705822241815,-500.0,0.00030136,2]
[312356802,1705822241825,-538.69538608,0.00030136,2]
[312356803,1705822241834,-213.70869467,0.00030136,2]
[312356804,1705822241844,-535.61395288,0.00030136,2]
[312356805,1705822241854,-500.0,0.00030136,2]
[312356806,1705822241863,-500.0,0.00030136,2]
[312356807,1705822241872,-369.00985851,0.00030136,2]
[312356808,1705822241881,-500.0,0.00030136,2]
[312356809,1705822241890,-500.0,0.00030136,2]
[312356810,1705822241899,-500.0,0.00030136,2]
[312356811,1705822241908,-500.0,0.00030136,2]
[312356812,1705822241918,-696.97,0.00030136,2]
[312356813,1705822241928,-500.82235622,0.00030136,2]
[312356814,1705822241937,-596.0958297,0.00030136,2]
[312356815,1705822241946,-502.39311687,0.00030136,2]
[312356816,1705822241955,-500.0,0.00030136,2]
[312356817,1705822241964,-500.0,0.00030136,2]
[312356818,1705822241973,-1178.78,0.00030136,2]
[312356819,1705822241982,-500.0,0.00030136,2]
[312356820,1705822241990,-500.0,0.00030136,2]
[312356821,1705822241999,-500.0,0.00030136,2]
[312356822,1705822242008,-500.0,0.00030136,2]
[312356823,1705822242017,-500.0,0.00030136,2]
[312356824,1705822242026,-500.0,0.00030136,2]
[312356825,1705822242035,-198.27753364,0.00030136,2]
[312356826,1705822242044,-212.33553347,0.00030136,2]
[312356827,1705822242057,-287.66446653,0.00030136,2]
[312356828,1705822242066,-500.0,0.00030136,2]
[312356829,1705822242075,-1398.07,0.00030136,2]
[312356830,1705822242084,-512.38150394,0.00030136,2]
[312356831,1705822242093,-1518.55,0.00030136,2]
[312356832,1705822242102,-500.0,0.00030136,2]
[312356833,1705822242111,-704.26,0.00030136,2]
[312356834,1705822242121,-500.0,0.00030136,2]
[312356835,1705822242130,-500.0,0.00030136,2]
[312356836,1705822242140,-500.0,0.00030136,2]
[312356837,1705822242148,-503.30193575,0.00030136,2]
[312356838,1705822242158,-344.29868622,0.00030136,2]
[312356839,1705822242169,-155.70131378,0.00030136,2]
[312356840,1705822242178,-500.0,0.00030136,2]
[312356841,1705822242187,-500.0,0.00030136,2]
[312356842,1705822242196,-194.53105503,0.00030136,2]
[312356843,1705822242205,-399.48405216,0.00030136,2]
[312356844,1705822242214,-538.02736512,0.00030136,2]
[312356845,1705822242223,-501.09123167,0.00030136,2]
[312356846,1705822242232,-500.0,0.00030136,2]
[312356847,1705822242241,-885.38,0.00030136,2]
[312356848,1705822242250,-510.55232706,0.00030136,2]
[312356849,1705822242259,-2142.39,0.00030136,2]
[312356850,1705822242268,-500.0,0.00030136,2]
[312356851,1705822242277,-500.0,0.00030136,2]
[312356852,1705822242286,-521.65662967,0.00030136,2]
[312356853,1705822242296,-500.0,0.00030136,2]
[312356854,1705822242306,-409.51392778,0.00030136,2]
[312356855,1705822242465,-90.48607222,0.00030136,2]
[312356856,1705822242474,-500.0,0.00030136,2]
[312356857,1705822242483,-500.0,0.00030136,2]
[312356858,1705822242493,-360.15166923,0.00030136,2]
[312356900,1705822246537,-1329.44189144,0.00030126,3]
[312356901,1705822338025,-154.70605849,0.00027121,4]
[312356902,1705822338048,-154.70605849,0.00028766,2]
[312356903,1705822338071,-172.865023,0.00028767,2]
[312356904,1705822338093,-4190.98,0.00029939,3]
[312356905,1705822338114,-3492.48,0.00029939,3]
[312356906,1705822338137,-2910.4,0.00029939,3]
[312356907,1705822338158,-178.53949807,0.00029947,2]
[312356908,1705822338180,-844.16440349,0.00029947,2]
[312356909,1705822338202,-267.70028902,0.00029947,2]
[312356910,1705822338223,-155.34695243,0.00029947,2]
[312356911,1705822338246,-156.60517663,0.00029947,2]
[312356912,1705822338267,-154.88935421,0.00029947,2]
[312356913,1705822338289,-295.48284636,0.00029947,2]
[312356914,1705822338313,-230.9549782,0.00029947,2]
[312356915,1705822338335,-183.50987477,0.00029947,2]
[312356916,1705822338356,-1430.14551075,0.00029947,2]
[312356917,1705822338380,-164.39277149,0.00029947,2]
[312356918,1705822338401,-266.02491592,0.00029947,2]
[312356919,1705822338426,-1201.26887827,0.00029947,2]
[312356920,1705822338445,-423.05970953,0.00029947,2]
[312356921,1705822338466,-591.34984357,0.00029947,2]
[312356922,1705822338488,-874.18725797,0.00029947,2]
[312356923,1705822338508,-155.5435324,0.00029947,2]
[312356924,1705822338528,-1740.68284208,0.00029947,2]
[312356925,1705822338547,-7793.31146728,0.00029947,2]
[312356926,1705822338567,-155.4555032,0.00029947,2]
[312356927,1705822338588,-425.69649895,0.00029947,2]
[312356928,1705822338612,-473.22201327,0.00029947,2]
[312356929,1705822338633,-5914.32694762,0.00029947,2]
[312356930,1705822338654,-226.19691074,0.00029947,2]
[312356931,1705822338675,-314.1231325,0.00029947,2]
[312356932,1705822338697,-7945.19667066,0.00029947,2]
[312356933,1705822338716,-1571.13875008,0.00029947,2]
[312356934,1705822338736,-154.70605849,0.00029947,2]
[312356935,1705822338758,-171.43302867,0.00029947,2]
[312356936,1705822338778,-1811.41770485,0.00029948,2]
[312356937,1705822338801,-4810.59912074,0.00029948,2]
[312356938,1705822338823,-306.95623254,0.00029948,2]
[312356939,1705822338842,-44696.23418527,0.00029949,2]
[312356946,1705823209089,-313.37172337,0.00027118,2]
[312356947,1705823229170,-154.70605849,0.00027117,4]
[312356948,1705823229192,-169.9286405,0.00028767,2]
[312356949,1705823229212,-1857.07227817,0.00029949,2]
[312356950,1705823247080,-10539.36934627,0.00029949,2]
[312356969,1705823432626,-154.70605849,0.00027112,4]
[312356970,1705823432636,-172.865023,0.00028767,2]
[312356971,1705823432645,-108.74769279,0.00029949,2]
[312356974,1705823439513,-1310.17034454,0.00029949,2]
[312356975,1705823439526,-3584.70207653,0.00029949,2]
[312356976,1705823439535,-261.52719804,0.00029949,2]
[312356977,1705823439544,-896.90213099,0.0003,6]
[312356978,1705823439553,-1891.72504122,0.0003,2]
[312356979,1705823439619,-428.69621823,0.0003,2]
[312356980,1705823439629,-333.56408104,0.00030034,2]
[312356981,1705823439638,-464.55162265,0.00030099,2]
[312356982,1705823439649,-154.4105762,0.000301,2]
[312356983,1705823439660,-197.9207001,0.000301,2]
[312356984,1705823439671,-333.56408103,0.00030103,2]
[312356985,1705823439681,-1888.62,0.00030116,3]
[312356986,1705823439692,-2948.76,0.00030116,3]
[312356987,1705823439702,-2457.3,0.00030116,3]
[312356988,1705823439711,-1743.79798694,0.00030125,4]
[312356989,1705823439720,-283.18988707,0.00030126,3]
[312356990,1705823439729,-686.69676861,0.00030126,4]
[312356991,1705823439738,-97160.44488397,0.00030126,14]
[312356992,1705823439747,-2102.11817883,0.00030134,4]
[312356993,1705823439756,-361.54386716,0.00030134,4]
[312356994,1705823439766,-521.53052275,0.00030134,4]
[312356995,1705823439775,-596.89020177,0.00030134,4]
[312356996,1705823439784,-702.90230444,0.00030134,4]
[312356997,1705823439793,-195.80128053,0.00030134,4]
[312356998,1705823439802,-189.82063554,0.00030134,4]
[312356999,1705823439812,-259.10318617,0.00030134,4]
[312357000,1705823439821,-155.48074807,0.00030134,4]
[312357001,1705823439830,-244.05029278,0.00030134,4]
[312357002,1705823439839,-973.72138555,0.00030135,4]
[312357003,1705823439848,-227.89792836,0.00030135,4]
[312357004,1705823439857,-418.17735031,0.00030135,4]
[312357005,1705823439866,-1000.0,0.00030135,14]
[312357006,1705823439876,-1000.0,0.00030135,14]
[312357007,1705823439887,-1000.0,0.00030135,14]
[312357008,1705823439897,-1000.0,0.00030135,14]
[312357009,1705823439906,-312.19320371,0.00030135,14]
[312357010,1705823439916,-1000.0,0.00030135,3]
[312357011,1705823439926,-500.0,0.00030136,2]
[312357012,1705823439936,-305.3734203,0.00030136,4]
[312357013,1705823439946,-500.0,0.00030136,2]
[312357014,1705823439955,-500.0,0.00030136,2]
[312357015,1705823439965,-500.0,0.00030136,2]
[312357016,1705823439974,-500.0,0.00030136,2]
[312357017,1705823439983,-471.89647136,0.00030136,2]
[312357019,1705823440119,-500.0,0.00030136,2]
[312357020,1705823440129,-500.0,0.00030136,2]
[312357021,1705823440139,-500.0,0.00030136,2]
[312357022,1705823440149,-600.0726011,0.00030136,2]
[312357023,1705823440160,-500.0,0.00030136,2]
[312357024,1705823440169,-500.0,0.00030136,2]
[312357025,1705823440178,-500.0,0.00030136,2]
[312357026,1705823440188,-500.0,0.00030136,2]
[312357027,1705823440199,-504.36863832,0.00030136,2]
[312357028,1705823440208,-500.0,0.00030136,2]
[312357029,1705823440217,-386.07321651,0.00030136,2]
[312357030,1705823440227,-500.0,0.00030136,2]
[312357031,1705823440237,-1000.0,0.00030136,2]
[312357032,1705823440246,-504.03597928,0.00030136,2]
[312357033,1705823440255,-500.0,0.00030136,2]
[312357034,1705823440265,-500.32661163,0.00030136,2]
[312357035,1705823440274,-533.7492348,0.00030136,2]
[312357036,1705823440283,-500.0,0.00030136,2]
[312357037,1705823440292,-500.0,0.00030136,2]
[312357038,1705823440302,-645.22,0.00030136,2]
[312357039,1705823440311,-500.0,0.00030136,2]
[312357040,1705823440320,-708.63,0.00030136,2]
[312357041,1705823440329,-500.44787412,0.00030136,2]
[312357042,1705823440338,-500.0,0.00030136,2]
[312357043,1705823440347,-568.49,0.00030136,2]
[312357044,1705823440357,-500.13735604,0.00030136,2]
[312357045,1705823440366,-500.42835523,0.00030136,2]
[312357046,1705823440375,-500.0,0.00030136,2]
[312357047,1705823440384,-500.0,0.00030136,2]
[312357048,1705823440393,-500.0,0.00030136,2]
[312357049,1705823440402,-724.54,0.00030136,2]
[312357050,1705823440412,-500.0,0.00030136,2]
[312357051,1705823440421,-500.0,0.00030136,2]
[312357052,1705823440431,-500.0,0.00030136,2]
[312357053,1705823440439,-533.55959299,0.00030136,2]
[312357054,1705823440449,-500.0,0.00030136,2]
[312357055,1705823440459,-500.0,0.00030136,2]
[312357056,1705823440468,-500.0,0.00030136,2]
[312357057,1705823440477,-500.0,0.00030136,2]
[312357058,1705823440487,-500.0,0.00030136,2]
[312357059,1705823440496,-500.0,0.00030136,7]
[312357060,1705823440507,-300.67494007,0.00030136,2]
[312357061,1705823440517,-500.0,0.00030136,2]
[312357062,1705823440526,-500.0,0.00030136,2]
[312357063,1705823440537,-500.0,0.00030136,2]
[312357064,1705823440546,-502.66377343,0.00030136,2]
[312357065,1705823440555,-500.0,0.00030136,2]
[312357066,1705823440566,-500.67327794,0.00030136,2]
[312357067,1705823440578,-500.0,0.00030136,2]
[312357068,1705823440589,-307.26826808,0.00030136,2]
[312357069,1705823440598,-500.0,0.00030136,2]
[312357070,1705823440608,-500.0,0.00030136,2]
[312357071,1705823440617,-500.0,0.00030136,2]
[312357072,1705823440627,-500.0,0.00030136,2]
[312357074,1705823440636,-500.0,0.00030136,2]
[312357075,1705823440645,-356.08272014,0.00030136,2]
[312357076,1705823440657,-1024.7,0.00030136,2]
[312357077,1705823440667,-473.69115438,0.00030136,2]
[312357078,1705823440677,-500.0,0.00030136,2]
[312357079,1705823440686,-220.0,0.00030136,2]
[312357080,1705823440697,-667.93,0.00030136,2]
[312357081,1705823440707,-500.0,0.00030136,2]
[312357082,1705823440716,-500.59354776,0.00030136,2]
[312357083,1705823440725,-505.49870955,0.00030136,2]
[312357084,1705823440735,-500.0,0.00030136,2]
[312357085,1705823440745,-209.41920177,0.00030136,2]
[312357095,1705823441753,-509.25612575,0.00030116,3]
[312357162,1705823447029,-0.89480485,0.00030116,3]
[312357464,1705825833327,-154.70605849,0.00027121,4]
[312357466,1705825833336,-1116.95031159,0.00027121,2]
[312357467,1705825833345,-1462.05237552,0.00027924,5]
[312357468,1705825833357,-2147.78603293,0.00027924,5]
[312357669,1705825841190,-459.74152149,0.00027924,5]
[312357701,1705825843061,-930.42007006,0.00027924,5]
[312357702,1705825843071,-160.05819492,0.00027924,5]
[312357703,1705825843082,-1000.0,0.00027924,5]
[312357734,1705825846135,-804.678,0.00027924,5]
[312357735,1705825846147,-3035.26380508,0.00027924,5]
[312357736,1705825846158,-167.291232,0.00028224,2]
[312357737,1705825846167,-5035.85058767,0.00028666,2]
[312357738,1705825846223,-19864.14941233,0.00028666,2]
[312357739,1705825846232,-165.694862,0.00028762,2]
[312357740,1705825846242,-162.671186,0.00028767,2]
[312357741,1705825846251,-155.0,0.00029958,2]
[312357742,1705825846260,-372.0,0.0003,2]
[312357743,1705825846269,-200.13844865,0.00030036,2]
[312357744,1705825846279,-200.13844861,0.00030036,2]
[312357745,1705825846288,-200.13844861,0.00030037,2]
[312357746,1705825846298,-200.13844861,0.00030037,2]
[312357747,1705825846307,-200.13844861,0.00030037,2]
[312357748,1705825846326,-153.0,0.000301,2]
[312357749,1705825846338,-231.87019,0.000301,2]
[312357750,1705825846348,-18961.16728225,0.00030115,4]
[312357751,1705825846358,-283.18988707,0.00030116,3]
[312357752,1705825846368,-686.69676861,0.00030116,4]
[312357753,1705825846378,-163.50023461,0.00030116,4]
[312357754,1705825846389,-305.3734203,0.00030116,4]
[312357755,1705825846398,-641.49282563,0.00030116,4]
[312357756,1705825846409,-636.22854748,0.00030116,4]
[312357757,1705825846419,-855.76207273,0.00030116,4]
[312357758,1705825846428,-237.04406504,0.00030116,2]
[312357759,1705825846438,-238.55345823,0.00030116,4]
[312357760,1705825846447,-351.38011252,0.00030116,2]
[312357761,1705825846458,-154.70605849,0.00030116,4]
[312357762,1705825846467,-1962.87,0.00030125,3]
[312357763,1705825846477,-1635.73,0.00030125,3]
[312357764,1705825846487,-330.15928791,0.00030134,4]
[312357765,1705825846497,-156.23501844,0.00030134,2]
[312357766,1705825846507,-425.69649895,0.00030134,2]
[312357767,1705825846516,-722.50907926,0.00030134,4]
[312357768,1705825846527,-521.53052275,0.00030134,4]
[312357769,1705825846537,-361.54386716,0.00030134,4]
[312357770,1705825846547,-244.05029278,0.00030134,4]
[312357771,1705825846556,-155.48074807,0.00030134,4]
[312357772,1705825846566,-596.89020177,0.00030134,4]
[312357773,1705825846576,-973.72138555,0.00030134,4]
[312357774,1705825846586,-259.10318617,0.00030134,4]
[312357775,1705825846595,-227.89792836,0.00030134,4]
[312357776,1705825846605,-195.80128053,0.00030134,4]
[312357777,1705825846615,-189.82063554,0.00030134,4]
[312357778,1705825846625,-702.90230444,0.00030134,4]
[312357779,1705825846636,-418.17735031,0.00030134,4]
[312357780,1705825846645,-371.79881355,0.00030134,2]
[312357781,1705825846655,-208.6,0.00030135,2]
[312357782,1705825846664,-208.6,0.00030135,2]
[312357783,1705825846674,-208.6,0.00030135,2]
[312357784,1705825846683,-208.6,0.00030135,2]
[312357785,1705825846693,-208.6,0.00030135,2]
[312357786,1705825846702,-208.6,0.00030135,2]
[312357787,1705825846712,-208.6,0.00030135,2]
[312357788,1705825846721,-208.6,0.00030135,2]
[312357789,1705825846731,-208.6,0.00030135,2]
[312357790,1705825846740,-160.47776168,0.00030135,10]
[312357791,1705825846750,-346.78282553,0.00030135,2]
[312357792,1705825846759,-1000.0,0.00030135,14]
[312357793,1705825846769,-1000.0,0.00030135,14]
[312357794,1705825846779,-1000.0,0.00030135,14]
[312357795,1705825846789,-1000.0,0.00030135,14]
[312357796,1705825846798,-312.19320371,0.00030135,14]
[312357797,1705825846808,-500.0,0.00030135,2]
[312357798,1705825846818,-500.0,0.00030135,2]
[312357799,1705825846827,-500.0,0.00030135,2]
[312357800,1705825846837,-500.0,0.00030135,2]
[312357801,1705825846846,-500.0,0.00030135,2]
[312357802,1705825846856,-500.0,0.00030135,2]
[312357803,1705825846866,-500.0,0.00030135,2]
[312357804,1705825846875,-500.0,0.00030135,2]
[312357805,1705825846884,-161.96573494,0.00030135,2]
[312357806,1705825846894,-500.0,0.00030135,2]
[312357807,1705825846904,-500.0,0.00030135,2]
[312357808,1705825846913,-441.10186791,0.00030135,2]
[312357809,1705825846924,-500.0,0.00030135,2]
[312357810,1705825846933,-500.0,0.00030135,2]
[312357811,1705825846943,-500.0,0.00030135,2]
[312357812,1705825846953,-228.02733672,0.00030135,2]
[312357813,1705825846962,-500.0,0.00030135,2]
[312357814,1705825846972,-500.0,0.00030135,2]
[312357815,1705825846983,-500.0,0.00030135,2]
[312357816,1705825846994,-175.45989026,0.00030135,2]
[312357817,1705825847004,-500.0,0.00030135,2]
[312357818,1705825847013,-252.64901856,0.00030135,2]
[312357819,1705825847023,-500.0,0.00030135,2]
[312357820,1705825847033,-500.0,0.00030135,2]
[312357821,1705825847043,-500.0,0.00030135,2]
[312357822,1705825847053,-500.0,0.00030135,2]
[312357823,1705825847062,-500.0,0.00030135,2]
[312357824,1705825847072,-500.0,0.00030135,2]
[312357825,1705825847082,-500.0,0.00030135,2]
[312357826,1705825847091,-500.0,0.00030135,2]
[312357827,1705825847100,-500.0,0.00030135,2]
[312357828,1705825847110,-500.0,0.00030135,2]
[312357829,1705825847119,-500.0,0.00030135,2]
[312357830,1705825847128,-500.0,0.00030135,2]
[312357831,1705825847138,-500.0,0.00030135,2]
[312357832,1705825847148,-500.0,0.00030135,2]
[312357833,1705825847158,-500.0,0.00030135,2]
[312357834,1705825847167,-500.0,0.00030135,2]
[312357835,1705825847177,-500.0,0.00030135,2]
[312357836,1705825847186,-500.0,0.00030135,2]
[312357837,1705825847196,-549.58104059,0.00030135,2]
[312357838,1705825847206,-500.0,0.00030135,2]
[312357839,1705825847215,-500.0,0.00030135,2]
[312357840,1705825847225,-500.0,0.00030135,2]
[312357841,1705825847234,-275.32573473,0.00030135,2]
[312357842,1705825847244,-500.0,0.00030135,2]
[312357843,1705825847254,-500.0,0.00030135,2]
[312357844,1705825847264,-499.99999999,0.00030135,2]
[312357845,1705825847275,-500.0,0.00030135,2]
[312357846,1705825847284,-382.13343378,0.00030135,2]
[312357847,1705825847294,-500.0,0.00030135,2]
[312357848,1705825847305,-500.0,0.00030135,2]
[312357849,1705825847315,-500.0,0.00030135,2]
[312357850,1705825847325,-500.0,0.00030135,2]
[312357851,1705825847334,-500.0,0.00030135,2]
[312357852,1705825847343,-500.0,0.00030135,2]
[312357853,1705825847353,-500.0,0.00030135,2]
[312357854,1705825847364,-500.0,0.00030135,2]
[312357855,1705825847373,-500.0,0.00030135,2]
[312357856,1705825847383,-500.0,0.00030135,2]
[312357857,1705825847392,-500.0,0.00030135,2]
[312357858,1705825847402,-500.0,0.00030135,2]
[312357859,1705825847412,-500.0,0.00030135,2]
[312357860,1705825847421,-500.0,0.00030135,2]
[312357861,1705825847430,-500.0,0.00030135,2]
[312357862,1705825847440,-428.12730146,0.00030135,2]
[312357863,1705825847449,-1000.0,0.00030135,3]
[312357864,1705825847459,-173.15813,0.00030136,2]
[312357865,1705825847469,-326.643979,0.00030136,2]
[312357866,1705825847479,-326.643979,0.00030136,2]
[312357867,1705825847489,-326.643979,0.00030136,2]
[312357868,1705825847499,-326.643979,0.00030136,2]
[312357869,1705825847508,-151.0,0.00030136,2]
[312357870,1705825847518,-151.0,0.00030136,2]
[312357871,1705825847527,-151.0,0.00030136,2]
[312357872,1705825847536,-151.0,0.00030136,2]
[312357873,1705825847546,-151.0,0.00030136,2]
[312357874,1705825847556,-151.0,0.00030136,2]
[312357875,1705825847565,-151.0,0.00030136,2]
[312357876,1705825847575,-151.0,0.00030136,2]
[312357877,1705825847584,-268.13167,0.00030136,2]
[312357878,1705825847742,-151.0,0.00030136,2]
[312357879,1705825847753,-151.0,0.00030136,2]
[312357880,1705825847762,-151.0,0.00030136,2]
[312357881,1705825847772,-151.0,0.00030136,2]
[312357882,1705825847781,-151.0,0.00030136,2]
[312357883,1705825847791,-151.0,0.00030136,2]
[312357884,1705825847801,-288.0,0.00030136,2]
[312357885,1705825847811,-151.0,0.00030136,2]
[312357886,1705825847820,-159.0,0.00030136,2]
[312357887,1705825847830,-1969.416874,0.00030136,2]
[312357888,1705825847840,-1969.416874,0.00030136,2]
[312357889,1705825847849,-1969.416874,0.00030136,2]
[312357890,1705825847859,-1969.416874,0.00030136,2]
[312357891,1705825847869,-1969.416874,0.00030136,2]
[312357892,1705825847878,-1969.416874,0.00030136,2]
[312357893,1705825847888,-1969.416874,0.00030136,2]
[312357894,1705825847897,-1969.416874,0.00030136,2]
[312357895,1705825847906,-1969.416874,0.00030136,2]
[312357896,1705825847915,-1969.416874,0.00030136,2]
[312357897,1705825847925,-1969.416874,0.00030136,2]
[312357898,1705825847934,-1969.416874,0.00030136,2]
[312357899,1705825847944,-1969.416874,0.00030136,2]
[312357900,1705825847954,-1969.416874,0.00030136,2]